fUSD/lending_fUSD_20260315
["ID","MTS","AMOUNT","RATE_DAILY","PERIOD"]
[408417932,1773592232922,-285.04008,0.000198,2]
[408417933,1773592232931,-434.06861486,0.000198,2]
[408417934,1773592232941,-150.0,0.000198,30]
[408417935,1773592232951,-9273.11586704,0.00019811,2]
[408417936,1773592232960,-166.66,0.00019817,2]
[408417937,1773592232969,-44106.5037005,0.00019828,2]
[408417938,1773592232978,-9273.11586704,0.00019833,2]
[408417939,1773592232987,-200.0,0.00019839,2]
[408417940,1773592232996,-200.0,0.0001984,2]
[408417941,1773592233005,-9273.11586704,0.00019856,2]
[408417942,1773592233015,-9273.11586704,0.00019878,2]
[408417943,1773592233025,-272.95996386,0.00019891,2]
[408417944,1773592233035,-2742.2173045,0.00019896,2]
[408417945,1773592233045,-10000.0,0.000199,2]
[408417946,1773592233055,-9273.11586704,0.000199,2]
[408417947,1773592233064,-160.96500405,0.000199,2]
[408417948,1773592233073,-3800.0,0.000199,7]
[408417949,1773592233082,-174.72740503,0.000199,2]
[408417950,1773592233091,-5000.0,0.000199,2]
[408417951,1773592233101,-3273.88952212,0.000199,2]
[408417952,1773592233110,-1040.19002325,0.000199,2]
[408417953,1773592233120,-487.41016108,0.000199,2]
[408417954,1773592233130,-500.0,0.00019973,2]
[408417955,1773592233141,-500.0,0.00019973,2]
[408417956,1773592233150,-330.27342068,0.00019973,2]
[408417957,1773592233159,-500.0,0.00019973,2]
[408417958,1773592233169,-500.0,0.00019973,2]
[408417959,1773592233179,-502.06348181,0.00019973,2]
[408417960,1773592233188,-215.76663807,0.00019973,2]
[408417961,1773592233198,-303.79637721,0.00019973,2]
[408417962,1773592233208,-342.27051295,0.0001999,2]
[408417963,1773592233217,-342.27051295,0.0001999,2]
[408417964,1773592233227,-300.0,0.00019999,2]
[408417965,1773592233236,-155.0,0.00019999,2]
[408417966,1773592233246,-500.0,0.00019999,2]
[408417967,1773592233255,-500.0,0.00019999,2]
[408417968,1773592233264,-500.0,0.00019999,2]
[408417969,1773592233274,-500.0,0.00019999,2]
[408417970,1773592233283,-500.0,0.00019999,2]
[408417971,1773592233294,-500.0,0.00019999,2]
[408417972,1773592233303,-500.0,0.00019999,2]
[408417973,1773592233312,-219.6123868,0.00019999,2]
[408417974,1773592233322,-2378.0,0.0002,5]
[408417975,1773592233332,-2175.0,0.0002,5]
[408417976,1773592233341,-106047.84284548,0.0002,2]
[408417977,1773592233353,-969.80549567,0.0002,2]
[408417984,1773592240525,-155.45975661,0.000197,2]
[408417985,1773592240535,-155.45975661,0.00019729,2]
[408417986,1773592240544,-1005.38531481,0.0002,2]
[408417987,1773592240555,-1250.7859079,0.0002,2]
[408417988,1773592240566,-1985.57269306,0.0002,2]
[408417989,1773592240577,-434.63005397,0.0002,2]
[408417990,1773592240589,-604.9224982,0.0002,2]
[408417991,1773592240717,-4313.00136119,0.0002,2]
[408417992,1773592240728,-915.68180285,0.0002,2]
[408417993,1773592240740,-719.17,0.0002,2]
[408417994,1773592240751,-13747.43201947,0.0002,2]
[408418024,1773592243253,-21917.13698288,0.0002,2]
[408418038,1773592243310,-275.08171695,0.0002,2]
[408418051,1773592243678,-111259.26083353,0.0002,2]
[408418052,1773592243696,-155.45975661,0.00019757,2]
[408418053,1773592243706,-668.54024339,0.0002,2]
[408418067,1773592246191,-33183.06113812,0.0002,2]
[408418068,1773592246203,-36035.14752852,0.0002,2]
[408418069,1773592246216,-335.819307,0.0002,2]
[408418070,1773592246227,-12443.49005193,0.0002,2]
[408418071,1773592246239,-560.8593,0.0002,2]
[408418072,1773592246443,-793.1136,0.0002,2]
[408418073,1773592246454,-141508.27474462,0.0002,2]
[408418074,1773592246469,-14929.78898844,0.0002,2]
[408418075,1773592246480,-881.45672485,0.0002,2]
[408418076,1773592246494,-445.5,0.0002,2]
[408418077,1773592246508,-4109.90969,0.0002,2]
[408418078,1773592246524,-1037.32092717,0.0002,2]
[408418079,1773592246568,-102064.31846283,0.0002,2]
[408418080,1773592246580,-202893.98477947,0.0002,2]
[408418084,1773592266794,8407.7,0.00011689,2]
[408418086,1773592395874,485.93,9.446e-05,2]
[408418087,1773592396069,485.93,9.943e-05,2]
[408418088,1773592396449,454.45,0.00010441,2]
[408418089,1773592396472,31.48,0.00010441,2]
[408418090,1773592396516,485.93,0.00010938,2]
[408418091,1773592396694,485.93,0.00011435,2]
[408418092,1773592450321,156.0,0.00011689,2]
[408418093,1773592587875,5000.6,0.00011689,2]
[408418094,1773592603541,-150.0,0.00011689,3]
[408418095,1773592603568,-156.0,0.00011689,3]
[408418096,1773592627085,156.0,0.00011689,3]
[408418097,1773592687321,156.0,0.00011689,3]
[408418098,1773592747028,156.0,0.00011689,3]
[408418107,1773592806997,156.0,0.00011689,3]
[408418112,1773592809048,151.0,0.00011689,3]
[408418114,1773592866751,157.0,0.00011689,3]
[408418115,1773592931231,157.0,0.00011689,3]
[408418116,1773592987141,157.0,0.00011689,2]
[408418117,1773593045826,157.0,0.00011689,2]
[408418118,1773593105472,151.0,0.00011689,2]
[408418119,1773593105837,157.0,0.00011689,2]
[408418120,1773593166741,157.0,0.00011689,2]
[408418122,1773593224825,157.0,0.00011689,2]
[408418123,1773593290786,163.0,0.00011689,2]
[408418124,1773593345677,163.0,0.00011689,2]
[408418125,1773593358156,-485.93,0.00011932,2]
[408418126,1773593358181,-485.93,0.00012429,2]
[408418127,1773593358202,-485.93,0.00012926,2]
[408418128,1773593358222,-485.93,0.00013424,2]
[408418129,1773593358247,-485.93,0.00013921,2]
[408418130,1773593358268,-176.66,0.00014172,2]
[408418131,1773593358289,-485.93,0.00014418,2]
[408418132,1773593358312,-300.0,0.0001443,2]
[408418133,1773593358332,-151.0,0.00014431,2]
[408418134,1773593358359,-151.0,0.00014431,2]
[408418135,1773593358380,-151.0,0.00014431,2]
[408418136,1773593358400,-151.0,0.00014431,2]
[408418137,1773593358421,-151.0,0.00014431,2]
[408418138,1773593358441,-151.0,0.00014431,2]
[408418139,1773593358460,-151.0,0.00014431,2]
[408418140,1773593358481,-2553.196826,0.0001444,2]
[408418141,1773593363157,-417.08055157,0.0001444,2]
[408418142,1773593363180,-280.94087818,0.00014915,2]
[408418143,1773593373137,-204.98912182,0.00014915,2]
[408418144,1773593373160,-1632.14,0.00015152,2]
[408418145,1773593373180,-485.93,0.00015412,2]
[408418146,1773593373207,-485.93,0.0001591,2]
[408418147,1773593373228,-250.0,0.0001595,2]
[408418148,1773593373248,-1200.0,0.00016406,2]
[408418149,1773593373271,-485.93,0.00016407,2]
[408418150,1773593373295,-34.4707387,0.00016574,3]
[408418152,1773593406395,157.0,0.00011689,2]
[408418154,1773593431273,-714.1475,0.00016739,2]
[408418155,1773593431327,-938.58892456,0.00016739,2]
[408418156,1773593431340,-847.26357544,0.00016739,2]
[408418157,1773593431351,-300.0,0.00016821,2]
[408418158,1773593431361,-485.93,0.00016904,2]
[408418159,1773593431371,-517.0,0.00017,2]
[408418160,1773593431381,-300.0,0.00017023,2]
[408418161,1773593431391,-300.0,0.00017023,2]
[408418162,1773593431400,-300.0,0.00017023,2]
[408418163,1773593431410,-519.45642456,0.00017071,2]
[408418164,1773593431423,-970.44892758,0.00017071,2]
[408418165,1773593431435,-1010.09464786,0.00017071,2]
[408418166,1773593431445,-2500.0,0.00017071,2]
[408418167,1773593431454,-2500.0,0.00017071,2]
[408418168,1773593431464,-5773.24840474,0.000172,2]
[408418169,1773593431473,-485.93,0.00017401,2]
[408418170,1773593431483,-1262.13848137,0.00017475,2]
[408418172,1773593431494,-1500.0,0.00017489,2]
[408418174,1773593431504,-157.0,0.00017551,3]
[408418176,1773593431514,-485.93,0.00017898,2]
[408418177,1773593431523,-2000.0,0.00017902,2]
[408418179,1773593431533,-1200.0,0.00018018,2]
[408418181,1773593431543,-600.0,0.00018232,2]
[408418182,1773593431552,-2500.0,0.00018232,2]
[408418184,1773593431563,-831.44152624,0.00018363,2]
[408418185,1773593431572,-485.93,0.00018395,2]
[408418188,1773593431582,-195.0,0.00018413,2]
[408418190,1773593431593,-300.0,0.00018413,2]
[408418192,1773593431603,-485.93,0.00018893,2]
[408418194,1773593431613,-205.19895621,0.00018928,2]
[408418196,1773593431624,-500.0,0.00018999,2]
[408418198,1773593431633,-500.0,0.00018999,2]
[408418199,1773593431643,-500.0,0.00018999,2]
[408418201,1773593431652,-500.0,0.00018999,2]
[408418202,1773593431662,-500.0,0.00018999,2]
[408418203,1773593431671,-151.0,0.00018999,2]
[408418204,1773593431681,-500.0,0.00018999,2]
[408418205,1773593431691,-500.0,0.00018999,2]
[408418206,1773593431703,-750.0,0.00018999,2]
[408418207,1773593431713,-500.0,0.00018999,2]
[408418208,1773593431723,-500.0,0.00018999,2]
[408418209,1773593431732,-750.0,0.00018999,2]
[408418210,1773593431742,-500.0,0.00018999,2]
[408418211,1773593431752,-750.0,0.00018999,2]
[408418212,1773593431762,-500.0,0.00018999,2]
[408418213,1773593431772,-500.0,0.00018999,2]
[408418214,1773593431782,-750.0,0.00018999,2]
[408418215,1773593431792,-500.0,0.00018999,2]
[408418216,1773593431802,-500.0,0.00018999,2]
[408418217,1773593431811,-750.0,0.00018999,2]
[408418218,1773593431821,-500.0,0.00018999,2]
[408418219,1773593431831,-500.0,0.00018999,2]
[408418220,1773593431841,-750.0,0.00018999,2]
[408418221,1773593431850,-500.0,0.00018999,2]
[408418222,1773593431860,-500.0,0.00018999,2]
[408418223,1773593431869,-750.0,0.00018999,2]
[408418224,1773593431879,-500.0,0.00018999,2]
[408418225,1773593431888,-500.0,0.00018999,2]
[408418226,1773593431898,-750.0,0.00018999,2]
[408418227,1773593431907,-208.92109869,0.00018999,2]
[408418228,1773593431916,-494.82113813,0.00018999,2]
[408418229,1773593431925,-151.0,0.00018999,2]
[408418230,1773593431935,-151.0,0.00018999,2]
[408418231,1773593431944,-197.65765567,0.00018999,2]
[408418232,1773593431953,-500.0,0.00018999,2]
[408418233,1773593431962,-500.0,0.00018999,2]
[408418234,1773593431972,-500.0,0.00018999,2]
[408418235,1773593431982,-500.0,0.00018999,2]
[408418236,1773593431991,-417.38708959,0.00018999,2]
[408418237,1773593432000,-151.0,0.00019054,2]
[408418238,1773593432014,-151.0,0.00019109,2]
[408418239,1773593432023,-151.0,0.00019164,2]
[408418240,1773593432032,-259.5,0.00019178,2]
[408418241,1773593432042,-2000.0,0.000192,2]
[408418242,1773593432052,-151.0,0.00019219,2]
[408418243,1773593432062,-151.0,0.00019274,2]
[408418244,1773593432071,-150.0,0.00019309,2]
[408418245,1773593432082,-1969.57515308,0.00019347,2]
[408418246,1773593432092,-700.0,0.00019464,2]
[408418247,1773593432101,-168.0,0.00019481,2]
[408418248,1773593432110,-2514.1351,0.00019522,2]
[408418249,1773593432119,-168.0,0.0001957,2]
[408418250,1773593432129,-318.48,0.000196,2]
[408418251,1773593432138,-400.0,0.000196,7]
[408418252,1773593432147,-168.0,0.00019673,2]
[408418253,1773593432156,-700.62114221,0.0001969,2]
[408418254,1773593432166,-299712.6731,0.00019699,2]
[408418255,1773593432175,-1000.0,0.000197,2]
[408418256,1773593432185,-900.0,0.000197,7]
[408418257,1773593432195,-168.0,0.00019746,2]
[408418258,1773593432204,-168.0,0.0001975,2]
[408418259,1773593432213,-1321.0,0.00019756,2]
[408418260,1773593432223,-168.0,0.00019781,2]
[408418261,1773593432233,-511.07243209,0.00019799,2]
[408418262,1773593432243,-518.99505939,0.00019799,2]
[408418263,1773593432253,-459.56105253,0.00019799,2]
[408418264,1773593432263,-1400.0,0.000198,7]
[408418265,1773593432272,-190.02672,0.000198,2]
[408418266,1773593432287,-190.02671,0.000198,2]
[408418267,1773593432296,-168.0,0.00019826,2]
[408418268,1773593432305,-168.0,0.00019829,2]
[408418269,1773593432314,-200.0,0.0001984,2]
[408418270,1773593432323,-150.0,0.00019849,2]
[408418271,1773593432332,-280.0,0.00019869,2]
[408418272,1773593432342,-318.48,0.00019874,2]
[408418273,1773593432351,-250.0,0.0001989,4]
[408418274,1773593432360,-1392.86020258,0.00019897,2]
[408418275,1773593432369,-1689.6754,0.000199,2]
[408418276,1773593432379,-1370.6687,0.000199,2]
[408418277,1773593432389,-5000.0,0.000199,2]
[408418278,1773593432399,-1800.0,0.000199,7]
[408418279,1773593432408,-492.50696862,0.000199,2]
[408418280,1773593432417,-1127.48812219,0.000199,2]
[408418281,1773593432427,-1187.84092108,0.000199,2]
[408418282,1773593432436,-962.9328345,0.000199,2]
[408418283,1773593432445,-1209.2265,0.000199,2]
[408418284,1773593432454,-159.4697551,0.000199,2]
[408418285,1773593432464,-896.01113346,0.000199,2]
[408418286,1773593432473,-2182.59301474,0.000199,2]
[408418287,1773593432483,-720.80190166,0.000199,2]
[408418288,1773593432496,-146.02311774,0.000199,2]
[408418289,1773593432505,-174.72740503,0.000199,2]
[408418290,1773593432515,-168.0,0.00019916,2]
[408418291,1773593432524,-252.41292469,0.00019926,2]
[408418292,1773593432533,-1304.0,0.00019973,2]
[408418293,1773593432546,-550.0891429,0.00019973,2]
[408418294,1773593432555,-500.0,0.00019973,2]
[408418295,1773593432566,-303.74834023,0.00019973,2]
[408418296,1773593432575,-65.07727747,0.00019973,2]
[408418297,1773593432588,-434.92272253,0.00019973,2]
[408418298,1773593432597,-439.57727747,0.00019973,2]
[408418299,1773593432617,-60.42272253,0.00019973,2]
[408418300,1773593432627,-246.25182677,0.00019973,2]
[408418301,1773593432638,-253.74817323,0.00019973,2]
[408418302,1773593432647,-29.16753779,0.0001999,2]
[408418305,1773593437438,-301.76454383,0.00019698,2]
[408418306,1773593437458,-198.23545617,0.00019698,2]
[408418307,1773593437468,-127.20831953,0.00019698,2]
[408418308,1773593437480,-175.20076934,0.00019698,2]
[408418309,1773593437490,-349.92702025,0.00019698,2]
[408418310,1773593437501,-150.07297975,0.00019698,2]
[408418311,1773593437510,-500.0,0.00019698,2]
[408418312,1773593437520,-500.0,0.00019698,2]
[408418313,1773593437529,-98.05424536,0.00019698,2]
[408418314,1773593437559,-401.94575464,0.00019698,2]
[408418315,1773593437568,-500.0,0.00019698,2]
[408418316,1773593437577,-23.54186012,0.00019698,2]
[408418362,1773593439550,-476.45813988,0.00019698,2]
[408418363,1773593439563,-500.0,0.00019698,2]
[408418364,1773593439572,-500.0,0.00019698,2]
[408418365,1773593439582,-500.0,0.00019698,2]
[408418366,1773593439592,-500.0,0.00019698,2]
[408418367,1773593439601,-500.0,0.00019698,2]
[408418368,1773593439611,-500.0,0.00019698,2]
[408418369,1773593439621,-154.62177192,0.00019698,2]
[408418370,1773593439631,-500.0,0.00019698,2]
[408418371,1773593439641,-467.11396832,0.00019899,2]
[408418372,1773593439651,-715.0628265,0.0001999,2]
[408418373,1773593439660,-744.23036429,0.0001999,2]
[408418374,1773593439670,-151.0,0.00019997,2]
[408418375,1773593439680,-9456.5651873,0.00019997,2]
[408418376,1773593439689,-2503.69656434,0.00019998,2]
[408418377,1773593439699,-300.0,0.00019999,2]
[408418378,1773593439708,-300.0,0.00019999,2]
[408418379,1773593439717,-666.0,0.00019999,2]
[408418380,1773593439726,-300.0,0.00019999,2]
[408418381,1773593439735,-666.0,0.00019999,2]
[408418382,1773593439745,-300.0,0.00019999,2]
[408418383,1773593439754,-1062.77697115,0.00019999,5]
[408418384,1773593439767,-1075.15316851,0.00019999,5]
[408418385,1773593439777,-500.0,0.00019999,2]
[408418386,1773593439786,-500.0,0.00019999,2]
[408418387,1773593439795,-500.0,0.00019999,2]
[408418388,1773593439806,-615.8329075,0.00019999,2]
[408418389,1773593439815,-500.0,0.00019999,2]
[408418390,1773593439824,-500.0,0.00019999,2]
[408418391,1773593439834,-500.0,0.00019999,2]
[408418392,1773593439843,-500.0,0.00019999,2]
[408418393,1773593439852,-500.0,0.00019999,2]
[408418394,1773593439861,-500.0,0.00019999,2]
[408418395,1773593439871,-524.24576923,0.00019999,2]
[408418396,1773593439879,-505.11042476,0.00019999,2]
[408418397,1773593439888,-502.29808326,0.00019999,2]
[408418398,1773593439897,-1533.0,0.0002,5]
[408418399,1773593439907,-2254.0,0.0002,5]
[408418400,1773593439916,-2181551.88587934,0.0002,2]
[408418401,1773593439925,-500.0,0.0002,2]
[408418402,1773593439935,-189095.92038608,0.0002,2]
[408418403,1773593439944,-1007731.48134002,0.0002,2]
[408418404,1773593439957,-3950.0,0.0002,2]
[408418405,1773593439967,-1000.0,0.0002,2]
[408418406,1773593439977,-111457.06927163,0.0002,2]
[408418407,1773593439985,-2878.67769392,0.0002,2]
[408418408,1773593439994,-12992.76524703,0.0002,2]
[408418409,1773593440004,-208.33923223,0.0002,2]
[408418410,1773593440017,-151.0,0.0002,2]
[408418411,1773593440027,-1173.17447297,0.0002,30]
[408418412,1773593440037,-154.74,0.0002,7]
[408418413,1773593440047,-151.0,0.0002,2]
[408418414,1773593440056,-151.0,0.0002,2]
[408418415,1773593440066,-151.0,0.0002,2]
[408418416,1773593440075,-151.0,0.0002,2]
[408418417,1773593440086,-187.27347,0.0002,2]
[408418418,1773593440096,-435.0,0.0002,2]
[408418419,1773593440105,-151.0,0.0002,2]
[408418420,1773593440115,-151.0,0.0002,2]
[408418421,1773593440124,-151.0,0.0002,2]
[408418422,1773593440134,-151.0,0.0002,2]
[408418423,1773593440143,-151.0,0.0002,2]
[408418424,1773593440153,-151.0,0.0002,2]
[408418425,1773593440164,-151.0,0.0002,2]
[408418426,1773593440174,-151.0,0.0002,2]
[408418427,1773593440183,-151.0,0.0002,2]
[408418428,1773593440192,-151.0,0.0002,2]
[408418429,1773593440202,-194.464962,0.0002,2]
[408418430,1773593440211,-151.0,0.0002,2]
[408418431,1773593440221,-151.0,0.0002,2]
[408418432,1773593440230,-151.0,0.0002,2]
[408418433,1773593440241,-158.410399,0.0002,2]
[408418434,1773593440251,-155.372088,0.0002,2]
[408418435,1773593440260,-151.0,0.0002,2]
[408418436,1773593440270,-151.0,0.0002,2]
[408418437,1773593440279,-151.0,0.0002,2]
[408418438,1773593440288,-151.0,0.0002,2]
[408418439,1773593440297,-151.0,0.0002,2]
[408418440,1773593440306,-151.0,0.0002,2]
[408418441,1773593440316,-151.0,0.0002,2]
[408418442,1773593440324,-151.0,0.0002,2]
[408418443,1773593440334,-151.0,0.0002,2]
[408418444,1773593440343,-151.0,0.0002,2]
[408418445,1773593440352,-157.125205,0.0002,2]
[408418446,1773593440361,-355.0,0.0002,2]
[408418447,1773593440370,-151.0,0.0002,2]
[408418448,1773593440379,-151.0,0.0002,2]
[408418449,1773593440388,-151.0,0.0002,2]
[408418450,1773593440397,-151.0,0.0002,2]
[408418451,1773593440406,-151.0,0.0002,2]
[408418452,1773593440416,-151.0,0.0002,2]
[408418453,1773593440426,-151.0,0.0002,2]
[408418454,1773593440437,-151.0,0.0002,2]
[408418455,1773593440448,-151.0,0.0002,2]
[408418456,1773593440457,-151.0,0.0002,2]
[408418457,1773593440467,-151.0,0.0002,2]
[408418458,1773593440476,-151.0,0.0002,2]
[408418459,1773593440486,-151.0,0.0002,2]
[408418460,1773593440496,-151.0,0.0002,2]
[408418461,1773593440506,-167.63004,0.0002,2]
[408418462,1773593440516,-179.366668,0.0002,2]
[408418463,1773593440525,-212.797635,0.0002,2]
[408418464,1773593440535,-151.0,0.0002,2]
[408418465,1773593440544,-151.0,0.0002,2]
[408418466,1773593440563,-151.0,0.0002,2]
[408418467,1773593440574,-182.339934,0.0002,2]
[408418468,1773593440584,-200.860515,0.0002,2]
[408418469,1773593440593,-200.860515,0.0002,2]
[408418470,1773593440604,-200.860515,0.0002,2]
[408418471,1773593440614,-200.860515,0.0002,2]
[408418472,1773593440624,-200.860515,0.0002,2]
[408418473,1773593440634,-200.860515,0.0002,2]
[408418474,1773593440644,-200.860515,0.0002,2]
[408418475,1773593440654,-200.860515,0.0002,2]
[408418476,1773593440666,-200.860515,0.0002,2]
[408418477,1773593440676,-200.860515,0.0002,2]
[408418478,1773593440688,-200.860515,0.0002,2]
[408418479,1773593440698,-200.860515,0.0002,2]
[408418480,1773593440707,-200.860515,0.0002,2]
[408418481,1773593440716,-200.860515,0.0002,2]
[408418482,1773593440725,-200.860515,0.0002,2]
[408418483,1773593440734,-200.860515,0.0002,2]
[408418484,1773593440744,-500.0,0.0002,2]
[408418485,1773593440753,-190.02672,0.0002,2]
[408418486,1773593440763,-190.02672,0.0002,2]
[408418487,1773593440772,-190.02672,0.0002,2]
[408418488,1773593440782,-190.02671,0.0002,2]
[408418489,1773593440791,-151.0,0.0002,2]
[408418490,1773593440801,-151.0,0.0002,2]
[408418491,1773593440810,-151.0,0.0002,2]
[408418492,1773593440820,-151.0,0.0002,2]
[408418493,1773593440829,-151.0,0.0002,2]
[408418494,1773593440838,-151.0,0.0002,2]
[408418495,1773593440848,-151.0,0.0002,2]
[408418496,1773593440857,-151.0,0.0002,2]
[408418497,1773593440867,-294.842127,0.0002,2]
[408418498,1773593440876,-151.0,0.0002,2]
[408418499,1773593440885,-156.180321,0.0002,2]
[408418500,1773593440895,-151.0,0.0002,2]
[408418501,1773593440904,-151.0,0.0002,2]
[408418502,1773593440913,-151.0,0.0002,2]
[408418503,1773593440922,-151.0,0.0002,2]
[408418504,1773593440930,-212.633755,0.0002,2]
[408418505,1773593440939,-1390.91,0.0002,2]
[408418506,1773593440948,-269.32,0.00020009,2]
[408418507,1773593440956,-168.0,0.00020012,2]
[408418508,1773593440964,-168.0,0.00020051,2]
[408418509,1773593440973,-168.0,0.00020073,2]
[408418510,1773593440983,-196.61,0.0002009,2]
[408418511,1773593440993,-434.672432,0.00020121,7]
[408418512,1773593441002,-2000.0,0.0002014,2]
[408418513,1773593441016,-318.48,0.00020148,2]
[408418514,1773593441025,-168.0,0.00020156,2]
[408418515,1773593441036,-168.0,0.00020183,2]
[408418516,1773593441047,-168.0,0.00020218,2]
[408418517,1773593441057,-272.28,0.00020224,2]
[408418518,1773593441067,-318.48,0.00020422,2]
[408418519,1773593441078,-1834.0,0.00020443,2]
[408418520,1773593441087,-4470.0,0.00020453,2]
[408418521,1773593441098,-1000.0,0.00020521,2]
[408418522,1773593441110,-500.0,0.00020521,2]
[408418523,1773593441119,-1000.0,0.00020521,2]
[408418524,1773593441129,-168.0,0.00020528,2]
[408418525,1773593441138,-168.0,0.00020531,2]
[408418526,1773593441148,-237.094056,0.00020532,7]
[408418527,1773593441157,-402.75507,0.00020532,7]
[408418528,1773593441167,-4470.0,0.00020595,2]
[408418529,1773593441177,-213.0,0.000206,7]
[408418530,1773593441187,-350.0,0.00020631,3]
[408418531,1773593441198,-269.32,0.00020654,2]
[408418532,1773593441207,-956.0,0.00020669,2]
[408418533,1773593441217,-272.28,0.00020695,2]
[408418534,1773593441227,-318.51,0.00020696,2]
[408418535,1773593441236,-7951.96,0.00020951,2]
[408418536,1773593441246,-164.0,0.00021,14]
[408418537,1773593441259,-942.15872365,0.00021,30]
[408418538,1773593441268,-500.0,0.00021068,2]
[408418539,1773593441278,-504.77307039,0.00021068,2]
[408418540,1773593441288,-168.0,0.00021204,2]
[408418541,1773593441299,-1834.0,0.00021219,2]
[408418542,1773593441309,-1834.0,0.0002128,2]
[408418543,1773593441320,-269.32,0.000213,2]
[408418544,1773593441330,-160.0,0.00021718,2]
[408418545,1773593441342,-469.87233333,0.00021718,2]
[408418546,1773593441351,-2500.0,0.00021917,2]
[408418547,1773593441361,-2500.0,0.00021917,2]
[408418548,1773593441371,-2500.0,0.00021917,2]
[408418549,1773593441380,-2500.0,0.00021917,2]
[408418550,1773593441390,-2500.0,0.00021917,2]
[408418551,1773593441400,-301.1819844,0.00021917,2]
[408418552,1773593441410,-455.52,0.00021918,2]
[408418553,1773593441419,-156.124975,0.00021918,2]
[408418554,1773593441430,-5000.0,0.00021918,2]
[408418555,1773593441439,-151.0,0.00021918,2]
[408418556,1773593441448,-151.0,0.00021918,2]
[408418557,1773593441458,-151.0,0.00021918,2]
[408418558,1773593441470,-151.0,0.00021918,2]
[408418559,1773593441491,-151.0,0.00021918,2]
[408418560,1773593441509,-151.0,0.00021918,2]
[408418561,1773593441519,-151.0,0.00021918,2]
[408418562,1773593441530,-151.0,0.00021918,2]
[408418563,1773593441542,-151.0,0.00021918,2]
[408418564,1773593441552,-261.654056,0.00021918,2]
[408418565,1773593441562,-269.32,0.00021945,2]
[408418566,1773593441571,-408.61827297,0.00021947,2]
[408418567,1773593441581,-500.0,0.00021973,2]
[408418568,1773593441590,-500.0,0.00021973,2]
[408418569,1773593441721,-500.0,0.00021973,2]
[408418570,1773593441756,-150.23101527,0.00021973,2]
[408418571,1773593441773,-500.0,0.00021973,2]
[408418572,1773593441784,-166.647,0.00021999,2]
[408418573,1773593441806,-1528.0,0.00022,2]
[408418574,1773593441825,-1392.86020254,0.00022174,2]
[408418575,1773593441847,-166.66,0.00022272,2]
[408418576,1773593441868,-2000.0,0.00022377,2]
[408418577,1773593441881,-500.0,0.00022521,2]
[408418578,1773593441892,-1000.0,0.00022521,2]
[408418579,1773593441903,-2110.0449046,0.00022531,2]
[408418580,1773593441914,-269.32,0.00022591,2]
[408418581,1773593441925,-1043.0,0.00022696,2]
[408418582,1773593441936,-3755.0,0.00022696,2]
[408418583,1773593441948,-1604.0,0.000229,2]
[408418584,1773593441959,-1127.48812217,0.000229,2]
[408418585,1773593441971,-2300.0,0.000229,8]